bitfinex/quotes_BTCUSD_20241116
["timestamp","ask_amount","ask_price","bid_price","bid_amount"]
[1731719773629,0.23656255,91277.0,91274.0,0.109559]
[1731719773821,0.23656255,91277.0,91262.0,0.09791445]
[1731719774260,0.23656255,91277.0,91270.0,0.109563]
[1731719774490,0.23656255,91277.0,91269.0,0.109565]
[1731719774729,0.23656255,91277.0,91273.0,0.10956]
[1731719775642,0.23656255,91277.0,91274.0,0.01041362]
[1731719775847,0.23656255,91277.0,91276.0,0.109557]
[1731719776048,0.23656255,91277.0,91276.0,0.1199696]
[1731719777117,0.10906255,91277.0,91276.0,0.1199696]
[1731719777554,0.10906255,91277.0,91276.0,0.13663634]
[1731719777975,0.10906255,91277.0,91276.0,0.14005782]
[1731719778184,0.10991965,91277.0,91276.0,0.14005782]
[1731719778451,0.10991965,91277.0,91276.0,0.14006323]
[1731719778677,0.10991965,91277.0,91276.0,0.126225]
[1731719778885,0.10991965,91277.0,91276.0,0.12339556]
[1731719779114,0.10991965,91277.0,91276.0,0.13664287]
[1731719779552,0.10991965,91277.0,91276.0,0.11997418]
[1731719779771,0.10991965,91277.0,91276.0,0.14150015]
[1731719780369,0.0008571,91277.0,91276.0,0.24150015]
[1731719780635,0.0008571,91277.0,91276.0,0.48265455]
[1731719782986,0.0008571,91277.0,91276.0,0.37805594]
[1731719783864,0.0008571,91277.0,91276.0,0.52731034]
[1731719784301,0.0008571,91277.0,91276.0,0.44541034]
[1731719784548,0.0008571,91277.0,91276.0,0.30783566]
[1731719784999,0.0008571,91277.0,91276.0,0.2616008]
[1731719785205,0.0008571,91277.0,91276.0,0.25819213]
[1731719785413,0.0008571,91277.0,91276.0,0.2616131]
[1731719786527,0.0008571,91277.0,91276.0,0.24008713]
[1731719788278,0.10991965,91277.0,91276.0,0.03053013]
[1731719788660,0.23581965,91277.0,91264.0,0.04389292]
[1731719788877,0.10906255,91276.0,91275.0,0.109559]
[1731719789082,0.10906255,91276.0,91275.0,0.12623322]
[1731719789284,0.10906255,91276.0,91275.0,0.11298048]
[1731719789479,0.10906255,91276.0,91275.0,0.14007486]
[1731719789900,0.10906255,91276.0,91275.0,0.13665338]
[1731719790089,0.10906255,91276.0,91275.0,0.14007493]
[1731719791304,0.10906255,91276.0,91275.0,0.14007489]
[1731719791957,0.10906255,91276.0,91275.0,0.1622232]
[1731719792163,0.10906255,91276.0,91275.0,0.14554917]
[1731719792585,0.10906255,91276.0,91275.0,0.14554918]
[1731719792962,0.10906255,91276.0,91275.0,0.14007484]
[1731719793195,0.0460571,91277.0,91275.0,0.14007484]
[1731719793196,0.0008571,91277.0,91275.0,0.14007484]
[1731719793405,0.0008571,91277.0,91276.0,0.24007284]
[1731719793660,0.0008571,91277.0,91276.0,0.39432724]
[1731719794098,0.16440698,91296.0,91285.0,0.109547]
[1731719794307,0.16440698,91296.0,91285.0,0.14553691]
[1731719795155,0.10991945,91286.0,91285.0,0.14553691]
[1731719795849,0.10991945,91286.0,91285.0,0.11844253]
[1731719796094,0.10991945,91286.0,91285.0,0.1621722]
[1731719796313,0.10991945,91286.0,91285.0,0.14551115]
[1731719796993,0.23581945,91286.0,91285.0,0.03596415]
[1731719797206,0.23581945,91286.0,91285.0,0.14551115]
[1731719797952,0.23581945,91286.0,91285.0,0.109547]
[1731719798410,0.23581945,91286.0,91267.0,0.09926777]
[1731719798646,0.109551,91282.0,91276.0,0.27396298]
[1731719798877,0.1267569,91286.0,91280.0,0.109553]
[1731719798878,0.10906255,91281.0,91280.0,0.109553]
[1731719799599,0.10906255,91281.0,91280.0,0.13663829]
[1731719799825,0.10906255,91281.0,91280.0,0.1400597]
[1731719800804,0.10906255,91281.0,91280.0,0.14553371]
[1731719801099,0.10906255,91281.0,91280.0,0.13663829]
[1731719801187,0.10906255,91281.0,91280.0,0.14553367]
[1731719802151,0.0008569,91286.0,91280.0,0.14553367]
[1731719802152,0.0008569,91286.0,91285.0,0.209547]
[1731719802388,0.0008569,91286.0,91285.0,0.51908669]
[1731719802616,0.16440698,91303.0,91285.0,0.51908669]
[1731719802617,0.16440698,91303.0,91302.0,0.109526]
[1731719802869,0.16966174,91303.0,91302.0,0.14550667]
[1731719803121,0.16966174,91303.0,91302.0,0.16631724]
[1731719803122,0.00525476,91303.0,91302.0,0.16631724]
[1731719803607,0.0008571,91309.0,91307.0,0.10952]
[1731719803838,0.10991875,91308.0,91307.0,0.10952]
[1731719804069,0.11519973,91308.0,91307.0,0.17781354]
[1731719804539,0.11519973,91308.0,91307.0,0.17314917]
[1731719804767,0.10991875,91308.0,91307.0,0.17314917]
[1731719805684,0.10991875,91308.0,91307.0,0.27314917]
[1731719805912,0.0008562,91308.0,91307.0,0.31746108]
[1731719806832,0.0008562,91308.0,91307.0,0.33964657]
[1731719807716,0.0008562,91308.0,91307.0,0.332806]
[1731719808160,0.0008562,91308.0,91307.0,0.33769125]
[1731719809055,0.0008562,91308.0,91307.0,0.34269125]
[1731719809299,0.0008577,91319.0,91318.0,0.109507]
[1731719809519,0.0008577,91319.0,91318.0,0.16618085]
[1731719809731,0.00618829,91319.0,91318.0,0.16618085]
[1731719809973,0.0008577,91319.0,91318.0,0.16618085]
[1731719810176,0.0008577,91319.0,91318.0,0.14540529]
[1731719810618,0.0008577,91319.0,91318.0,0.24540529]
[1731719811691,0.10992025,91319.0,91318.0,0.14540529]
[1731719812141,0.23872025,91319.0,91318.0,0.03589684]
[1731719812349,0.23872025,91319.0,91318.0,0.01380602]
[1731719812621,0.24405703,91319.0,91318.0,0.01380602]
[1731719813042,0.24405703,91319.0,91318.0,0.12331302]
[1731719813282,0.23872025,91319.0,91318.0,0.13993228]
[1731719813516,0.23872025,91319.0,91318.0,0.12331302]
[1731719813745,0.2440667,91319.0,91318.0,0.12331302]
[1731719813960,0.2440667,91319.0,91318.0,0.14537442]
[1731719814388,0.2440667,91319.0,91318.0,0.13990219]
[1731719814871,0.2440667,91319.0,91318.0,0.14537438]
[1731719815536,0.1122667,91319.0,91318.0,0.13990219]
[1731719815748,0.1122667,91319.0,91318.0,0.14537448]
[1731719815951,0.10692025,91319.0,91318.0,0.14537448]
[1731719818582,0.10692025,91319.0,91318.0,0.14532513]
[1731719821210,0.10692025,91319.0,91318.0,0.14532966]
[1731719821900,0.10692025,91319.0,91318.0,0.03582923]
[1731719822142,0.10692025,91319.0,91318.0,0.01377974]
[1731719822382,0.11226592,91319.0,91318.0,0.01377974]
[1731719822618,0.16216592,91319.0,91318.0,0.01377974]
[1731719822831,0.27167192,91319.0,91318.0,0.01377974]
[1731719823050,0.35057192,91319.0,91318.0,0.01377974]
[1731719824211,0.35057192,91319.0,91310.0,0.02205723]
[1731719824212,0.109515,91311.0,91310.0,0.00547239]
[1731719824433,0.10906255,91311.0,91307.0,0.12611088]
[1731719824675,0.00531049,91311.0,91308.0,0.01926158]
[1731719824909,0.10906255,91310.0,91309.0,0.01378897]
[1731719825136,0.11436865,91310.0,91309.0,0.01378897]
[1731719825594,0.11436865,91310.0,91309.0,0.12330697]
[1731719825829,0.11436865,91310.0,91309.0,0.14537046]
[1731719826596,0.11436865,91310.0,91309.0,0.118411]
[1731719826847,0.11436865,91310.0,91309.0,0.12878699]
[1731719827089,0.11436865,91310.0,91309.0,0.14538976]
[1731719831027,0.10906255,91310.0,91309.0,0.14538976]
[1731719831666,0.10906255,91310.0,91309.0,0.14545299]
[1731719831900,0.11436618,91310.0,91309.0,0.14545278]
[1731719832112,0.11436618,91310.0,91309.0,0.03593478]
[1731719832543,0.51439016,91310.0,91309.0,0.03593478]
[1731719832760,0.35198318,91310.0,91309.0,0.01382061]
[1731719833433,0.35198318,91310.0,91295.0,0.16440698]
[1731719833434,0.10953,91299.0,91298.0,0.00547349]
[1731719833636,0.10953,91299.0,91298.0,0.01929639]
[1731719833637,0.21859255,91299.0,91298.0,0.01929639]
[1731719833899,0.21859255,91299.0,91298.0,0.01382269]
[1731719833900,0.22384431,91299.0,91298.0,0.01382269]
[1731719834308,0.22584431,91299.0,91298.0,0.01382269]
[1731719834504,0.22584431,91299.0,91298.0,0.00342111]
[1731719834948,0.109544,91287.0,91286.0,0.0017138]
[1731719835146,0.109544,91287.0,91286.0,0.01211547]
[1731719835147,0.21860655,91287.0,91286.0,0.01211547]
[1731719835366,0.22379895,91287.0,91286.0,0.01553677]
[1731719835636,0.39469061,91287.0,91286.0,0.01553677]
[1731719835846,0.39469061,91287.0,91286.0,0.12508186]
[1731719835847,0.11425495,91287.0,91286.0,0.12508186]
[1731719836098,0.11425495,91287.0,91286.0,0.01553686]
[1731719836306,0.22379895,91287.0,91286.0,0.01553686]
[1731719836757,0.35189895,91287.0,91286.0,0.0017138]
[1731719837152,0.34989895,91287.0,91286.0,0.0017138]
[1731719837589,0.35189895,91287.0,91286.0,0.0017138]
[1731719838250,0.34989895,91287.0,91286.0,0.0017138]
[1731719838459,0.35189895,91287.0,91286.0,0.0017138]
[1731719838894,0.39647367,91287.0,91286.0,0.0017138]
[1731719839377,0.39447367,91287.0,91286.0,0.0017138]
[1731719840050,0.39647367,91287.0,91286.0,0.0017138]
[1731719840276,0.38928127,91287.0,91286.0,0.0017138]
[1731719840492,0.15496255,91287.0,91286.0,0.0017138]
[1731719840715,0.10906255,91287.0,91286.0,0.1112588]
[1731719841138,0.10906255,91287.0,91286.0,0.12505763]
[1731719842107,0.10906255,91287.0,91286.0,0.11468]
[1731719842319,0.10906255,91287.0,91286.0,0.1112588]
[1731719842539,0.10906255,91287.0,91286.0,0.11468]
[1731719842782,0.10906255,91287.0,91286.0,0.12505896]
[1731719843013,0.10906255,91287.0,91286.0,0.12505895]
[1731719843222,0.16440698,91299.0,91298.0,0.109531]
[1731719843439,0.27346953,91299.0,91298.0,0.109531]
[1731719843656,0.10906255,91299.0,91298.0,0.109531]
[1731719844563,0.75822,91316.0,91298.0,0.109531]
[1731719844564,0.16440698,91321.0,91298.0,0.0768]
[1731719844790,0.16440698,91311.0,91299.0,0.01379481]
[1731719845016,0.10906255,91310.0,91309.0,0.109518]
[1731719845507,0.10906255,91310.0,91309.0,0.11988996]
[1731719845723,0.10906255,91310.0,91309.0,0.12331027]
[1731719846382,0.10906255,91310.0,91309.0,0.12330961]
[1731719846604,0.16640698,91335.0,91309.0,0.01379161]
[1731719846833,0.16640698,91335.0,91306.0,0.16440698]
[1731719846834,0.16440698,91325.0,91318.0,0.109507]
[1731719847056,0.16440698,91335.0,91318.0,0.12329861]
[1731719847281,0.16440698,91324.0,91318.0,0.12329861]
[1731719848197,0.16440698,91335.0,91318.0,0.12329861]
[1731719849546,0.16440698,91335.0,91318.0,0.20329861]
[1731719849766,0.16440698,91335.0,91318.0,0.21329861]
[1731719850652,0.16440698,91335.0,91318.0,0.31829861]
[1731719852705,0.16440698,91335.0,91318.0,0.31329861]
[1731719853397,0.16440698,91335.0,91318.0,0.33506086]
[1731719854085,0.16440698,91335.0,91318.0,0.25506086]
[1731719854668,0.10991945,91319.0,91318.0,0.12292731]
[1731719855009,0.10991945,91319.0,91318.0,0.119507]
[1731719855482,0.10991945,91319.0,91318.0,0.109507]
[1731719860603,0.10991945,91319.0,91316.0,0.0216397]
[1731719860604,0.10991945,91319.0,91313.0,0.219026]
[1731719860836,0.10991945,91319.0,91309.0,0.219034]
[1731719860837,0.10906255,91318.0,91317.0,0.109507]
[1731719861530,0.10906255,91318.0,91309.0,0.01]
[1731719861762,0.10906255,91318.0,91312.0,0.219029]
[1731719861988,0.10906255,91318.0,91314.0,0.119511]
[1731719862463,0.10906255,91318.0,91314.0,0.01]
[1731719862691,0.10906255,91318.0,91313.0,0.109512]
[1731719862922,0.219017,91317.0,91305.0,0.00164236]
[1731719863159,0.219017,91317.0,91306.0,0.17440698]
[1731719863160,0.15456255,91316.0,91306.0,0.17440698]
[1731719863617,0.109518,91309.0,91306.0,0.16440698]
[1731719863845,0.10906255,91308.0,91305.0,0.00164236]
[1731719864540,0.10906255,91308.0,91307.0,0.10952]
[1731719867696,0.10906255,91308.0,91305.0,0.00164236]
[1731719867697,0.109521,91306.0,91305.0,0.00164236]
[1731719867919,0.10906255,91306.0,91305.0,0.00164236]
[1731719868138,0.21858355,91306.0,91305.0,0.00164236]
[1731719868807,0.10906255,91306.0,91305.0,0.11116536]
[1731719869041,0.10906255,91306.0,91305.0,0.01201099]
[1731719869253,0.10906255,91306.0,91305.0,0.12495458]
[1731719869471,0.10906255,91306.0,91305.0,0.14702311]
[1731719869707,0.10906255,91306.0,91305.0,0.14155052]
[1731719869939,0.10906255,91306.0,91305.0,0.14702327]
[1731719870817,0.10906255,91306.0,91305.0,0.16861441]
[1731719871930,0.10906255,91306.0,91305.0,0.18520838]
[1731719872371,0.10906255,91306.0,91305.0,0.15824578]
[1731719872372,0.08443888,91306.0,91305.0,0.15824578]
[1731719872597,0.08443888,91306.0,91305.0,0.16864242]
[1731719873250,0.0008569,91319.0,91305.0,0.15911942]
[1731719873464,0.0008569,91319.0,91318.0,0.109507]
[1731719873675,0.0008569,91319.0,91318.0,0.1399211]
[1731719873936,0.0008569,91319.0,91318.0,0.14539292]
[1731719874376,0.0008569,91319.0,91318.0,0.23249292]
[1731719874610,0.0008569,91319.0,91318.0,0.33249292]
[1731719875483,0.0008569,91319.0,91318.0,0.33749292]
[1731719876332,0.0008569,91319.0,91318.0,0.301607]
[1731719876544,0.0008569,91319.0,91318.0,0.38287513]
[1731719876780,0.0008569,91319.0,91318.0,0.34698422]
[1731719877029,0.0008569,91319.0,91318.0,0.03588507]
[1731719877035,0.23321945,91319.0,91318.0,0.03588507]
[1731719877266,0.34272545,91319.0,91318.0,0.03041448]
[1731719877553,0.34272545,91319.0,91318.0,0.01380149]
[1731719877849,0.34272545,91319.0,91318.0,0.01038237]
[1731719878533,0.34768766,91319.0,91318.0,0.01038237]
[1731719879879,0.34968766,91319.0,91318.0,0.01038237]
[1731719880619,0.34968766,91319.0,91306.0,0.01661299]
[1731719880620,0.002,91309.0,91306.0,0.01661299]
[1731719880834,0.002,91309.0,91307.0,0.00342058]
[1731719880835,0.10906255,91308.0,91307.0,0.00342058]
[1731719881049,0.10906255,91308.0,91307.0,0.01381077]
[1731719881050,0.2234954,91308.0,91307.0,0.01381077]
[1731719881946,0.2234954,91308.0,91307.0,0.01552397]
[1731719882175,0.2254954,91308.0,91307.0,0.0017132]
[1731719882409,0.2254954,91308.0,91307.0,0.01552468]
[1731719882884,0.3487954,91308.0,91307.0,0.01552468]
[1731719883089,0.5030498,91308.0,91307.0,0.01210409]
[1731719883314,0.5030498,91308.0,91307.0,0.0017132]
[1731719884891,0.5260498,91308.0,91307.0,0.0017132]
[1731719885531,0.57835983,91308.0,91307.0,0.0017132]
[1731719888058,1.11755983,91308.0,91307.0,0.0017132]
[1731719888265,1.21755983,91308.0,91307.0,0.0017132]
[1731719888486,1.21555983,91308.0,91307.0,0.0017132]
[1731719888701,1.21755983,91308.0,91307.0,0.0017132]
[1731719891258,0.367121,91306.0,91305.0,0.00164236]
[1731719891486,0.47618355,91306.0,91305.0,0.00164236]
[1731719891716,0.48349909,91306.0,91305.0,0.00164236]
[1731719893588,1.02269909,91306.0,91305.0,0.00335576]
[1731719896623,0.012,91287.0,91281.0,0.16440698]
[1731719896834,0.37620655,91287.0,91281.0,0.16440698]
[1731719897256,0.38339673,91287.0,91281.0,0.16440698]
[1731719897502,0.92259673,91287.0,91282.0,0.16440698]
[1731719897716,0.92259673,91287.0,91271.0,0.16612098]
[1731719897717,0.79999673,91287.0,91271.0,0.16612098]
[1731719898393,0.79999673,91287.0,91272.0,0.16440698]
[1731719898598,0.92059673,91287.0,91272.0,0.16440698]
[1731719898809,1.06985113,91287.0,91272.0,0.16440698]
[1731719899021,0.92259673,91287.0,91272.0,0.16440698]
[1731719899237,0.92059673,91287.0,91272.0,0.16440698]
[1731719899949,1.06985113,91287.0,91272.0,0.16440698]
[1731719900162,1.11498608,91287.0,91272.0,0.16440698]
[1731719900373,1.11698608,91287.0,91272.0,0.16440698]
[1731719901881,1.36624048,91287.0,91272.0,0.16440698]
[1731719902522,1.36624048,91287.0,91271.0,0.001714]
[1731719908077,1.21698608,91287.0,91271.0,0.001714]
[1731719908301,1.36624048,91287.0,91271.0,0.001714]
[1731719908968,1.36424048,91287.0,91271.0,0.001714]
[1731719909588,1.35950368,91287.0,91271.0,0.001714]
[1731719909798,1.3590503,91287.0,91271.0,0.001714]
[1731719911320,1.3590503,91287.0,91271.0,0.16612098]
[1731719912172,1.46811285,91287.0,91271.0,0.16612098]
[1731719912646,1.3590503,91287.0,91271.0,0.16612098]
[1731719922084,1.4741503,91287.0,91271.0,0.16612098]
[1731719922303,1.3590503,91287.0,91271.0,0.16612098]
[1731719923441,0.244562,91272.0,91271.0,0.001714]
[1731719923657,0.244562,91272.0,91262.0,0.16440698]
[1731719923658,0.012,91263.0,91262.0,0.16440698]
[1731719923872,0.012,91263.0,91255.0,0.0017138]
[1731719923873,0.121581,91256.0,91255.0,0.0017138]
[1731719924065,0.121581,91256.0,91241.0,0.16612078]
[1731719924066,0.244597,91243.0,91242.0,0.16612098]
[1731719924312,0.244597,91243.0,91242.0,0.16954421]
[1731719924313,1.04211395,91243.0,91242.0,0.16954421]
[1731719924534,1.04211395,91243.0,91242.0,0.001714]
[1731719926798,1.19136835,91243.0,91242.0,0.001714]
[1731719927033,1.04211395,91243.0,91242.0,0.001714]
[1731719927883,1.12361395,91243.0,91242.0,0.001714]
[1731719928096,1.16920954,91243.0,91242.0,0.001714]
[1731719928750,1.46249282,91243.0,91242.0,0.001714]
[1731719928994,0.221603,91238.0,91237.0,0.0017142]
[1731719929218,0.35366555,91238.0,91237.0,0.0017142]
[1731719930117,0.54972332,91238.0,91237.0,0.0017142]
[1731719930397,0.71523619,91238.0,91237.0,0.0017142]
[1731719930836,0.35366555,91238.0,91237.0,0.0017142]
[1731719931058,0.50291995,91238.0,91237.0,0.0017142]
[1731719931259,0.64976877,91238.0,91237.0,0.0017142]
[1731719932296,0.6119825,91238.0,91237.0,0.0017142]
[1731719933819,0.244604,91237.0,91236.0,0.00117323]
[1731719934062,0.45151825,91237.0,91236.0,0.00117323]
[1731719934300,0.35366655,91237.0,91236.0,0.00117323]
[1731719934984,0.89286655,91237.0,91236.0,0.00117323]
[1731719935442,0.88786655,91237.0,91236.0,0.00117323]
[1731719935674,0.86986655,91237.0,91236.0,0.00117323]
[1731719936602,0.21866655,91237.0,91236.0,0.00117323]
[1731719936807,0.22866655,91237.0,91236.0,0.00117323]
[1731719938064,0.25166655,91237.0,91236.0,0.00117323]
[1731719939127,0.25366655,91237.0,91236.0,0.00117323]
[1731719939359,0.24866655,91237.0,91236.0,0.00117323]
[1731719939574,0.24366655,91237.0,91236.0,0.00117323]
[1731719940429,0.24166655,91237.0,91236.0,0.00117323]
[1731719940659,0.10906255,91237.0,91236.0,0.23657823]
[1731719940888,0.10906255,91237.0,91236.0,0.13733613]
[1731719941852,0.22066655,91237.0,91236.0,0.13733549]
[1731719942319,0.24866655,91237.0,91236.0,0.00117323]
[1731719942551,0.25366655,91237.0,91236.0,0.00117323]
[1731719945351,0.25166655,91237.0,91236.0,0.00117323]
[1731719945614,0.25366655,91237.0,91236.0,0.00117323]
[1731719949468,0.25366655,91237.0,91236.0,0.01155642]
[1731719950550,0.25366655,91237.0,91236.0,0.00117323]
[1731719950784,0.25366655,91237.0,91236.0,0.01156527]
[1731719951877,0.25452405,91237.0,91236.0,0.01156527]
[1731719952138,0.50377845,91237.0,91236.0,0.00117323]
[1731719952356,0.48052405,91237.0,91236.0,0.00117323]
[1731719952753,1.01972405,91237.0,91236.0,0.00117323]
[1731719954541,1.16897845,91237.0,91236.0,0.00117323]
[1731719954748,1.04110038,91237.0,91236.0,0.00117323]
[1731719954957,1.15016293,91237.0,91236.0,0.00117323]
[1731719955169,1.41451733,91237.0,91236.0,0.00117323]
[1731719955597,1.41451733,91237.0,91226.0,0.0017132]
[1731719955598,0.221616,91227.0,91226.0,0.0017132]
[1731719955818,0.50293295,91227.0,91226.0,0.0017132]
[1731719956245,0.62753295,91227.0,91226.0,0.0017132]
[1731719956467,0.62753295,91227.0,91217.0,1e-06]
[1731719956468,0.3938814,91218.0,91217.0,1e-06]
[1731719956707,1.04214395,91218.0,91217.0,1e-06]
[1731719956943,0.012,91214.0,91206.0,0.0017142]
[1731719957323,0.35369455,91214.0,91206.0,0.0017142]
[1731719957325,0.5006958,91214.0,91206.0,0.0017142]
[1731719957642,0.5431488,91207.0,91206.0,1e-06]
[1731719957868,1.28938928,91207.0,91206.0,1e-06]
[1731719958093,0.244641,91206.0,91179.0,0.01667304]
[1731719958296,0.35370355,91206.0,91174.0,0.0783]
[1731719958508,0.45164878,91206.0,91174.0,0.0783]
[1731719959130,0.35370355,91206.0,91174.0,0.0783]
[1731719959566,0.144655,91195.0,91174.0,0.0783]
[1731719959814,1.04217195,91195.0,91174.0,0.0783]
[1731719960376,1.04217195,91195.0,91160.0,0.0486]
[1731719960377,0.134688,91167.0,91166.0,0.0783]
[1731719960601,0.134688,91167.0,91166.0,0.01383265]
[1731719960602,0.39800495,91167.0,91166.0,0.01383265]
[1731719960822,0.39800495,91167.0,91166.0,0.01040676]
[1731719961513,0.109702,91156.0,91155.0,0.0783]
[1731719961744,0.22076455,91156.0,91155.0,0.09213084]
[1731719961966,0.22076455,91156.0,91155.0,0.10878285]
[1731719962422,0.22076455,91156.0,91155.0,0.09213084]
[1731719963525,0.22076455,91156.0,91155.0,0.08870448]
[1731719964177,0.10906255,91156.0,91155.0,0.08870448]
[1731719964607,0.21876455,91156.0,91155.0,0.08870448]
[1731719966604,0.21876455,91156.0,91155.0,0.08868279]
[1731719967022,0.10906255,91156.0,91155.0,0.19838579]
[1731719970346,0.10906255,91156.0,91155.0,0.188003]
[1731719970585,0.10906255,91156.0,91155.0,0.19838137]
[1731719970814,0.10906255,91156.0,91155.0,0.08867837]
[1731719971049,0.21876455,91156.0,91155.0,0.08867837]
[1731719971709,0.22076455,91156.0,91155.0,0.08867837]
[1731719971923,0.109708,91151.0,91150.0,0.001714]
[1731719972139,0.22077055,91151.0,91150.0,0.001714]
[1731719974225,0.24377055,91151.0,91150.0,0.001714]
[1731719975545,0.63112495,91151.0,91150.0,0.001714]
[1731719976454,0.48187055,91151.0,91150.0,0.001714]
[1731719977119,0.69089539,91151.0,91150.0,0.001714]
[1731719977324,0.52648841,91151.0,91150.0,0.001714]
[1731719977525,0.52648841,91151.0,91144.0,0.001715]
[1731719977526,0.121714,91146.0,91144.0,0.001715]
[1731719977745,0.89297655,91146.0,91144.0,0.001715]
[1731719978369,0.89097655,91146.0,91144.0,0.001715]
[1731719978573,0.89297655,91146.0,91144.0,0.001715]
[1731719982354,0.35377655,91146.0,91144.0,0.001715]
[1731719982768,0.4628391,91146.0,91144.0,0.001715]
[1731719982977,0.35377655,91146.0,91144.0,0.001715]
[1731719987643,0.10906255,91146.0,91144.0,0.001715]
[1731719987893,0.21877655,91146.0,91144.0,0.001715]
[1731719988113,0.38518353,91146.0,91144.0,0.001715]
[1731719988358,0.39018353,91146.0,91144.0,0.001715]
[1731719988596,0.27517655,91146.0,91144.0,0.001715]
[1731719988837,0.29817655,91146.0,91144.0,0.001715]
[1731719990377,0.40317655,91146.0,91144.0,0.001715]
[1731719994157,0.94237655,91146.0,91144.0,0.001715]
[1731719996191,0.89297655,91146.0,91144.0,0.001715]
[1731719998144,0.75997655,91146.0,91144.0,0.001715]
[1731719998415,0.75797655,91146.0,91144.0,0.001715]
[1731719999475,0.78097655,91146.0,91144.0,0.001715]
[1731720000225,0.10906255,91146.0,91144.0,0.001715]
[1731720000466,0.10906255,91146.0,91145.0,0.24063]
[1731720000919,0.10906255,91146.0,91145.0,0.19433]
[1731720001149,0.21877655,91146.0,91145.0,0.001715]
[1731720001402,0.23077655,91146.0,91145.0,0.001715]
[1731720001624,0.24877655,91146.0,91145.0,0.001715]
[1731720002342,0.10906255,91146.0,91145.0,0.11143]
[1731720002555,0.10906255,91146.0,91145.0,0.001715]
[1731720002776,0.10906255,91146.0,91145.0,0.11143]
[1731720002988,0.0008583,91150.0,91145.0,0.11143]
[1731720002989,0.0008583,91150.0,91149.0,0.10971]
[1731720003213,0.0008583,91150.0,91149.0,0.19261]
[1731720003964,0.16440698,91167.0,91163.0,0.219384]
[1731720004197,0.10906255,91166.0,91165.0,0.109691]
[1731720004666,0.10906255,91166.0,91165.0,0.192591]
[1731720007811,0.16440698,91176.0,91167.0,0.005]
[1731720008067,0.16440698,91176.0,91175.0,0.109679]
[1731720008311,0.16440698,91176.0,91175.0,0.12009633]
[1731720008529,0.10906255,91180.0,91175.0,0.01041733]
[1731720008768,0.10906255,91180.0,91179.0,0.109674]
[1731720008997,0.10906255,91180.0,91179.0,0.12009133]
[1731720010583,0.10906255,91180.0,91179.0,0.109674]
[1731720011740,0.10906255,91180.0,91179.0,0.185874]
[1731720011955,0.0005,91193.0,91192.0,0.109658]
[1731720012175,0.10956255,91193.0,91192.0,0.109658]
[1731720012408,0.10956255,91193.0,91192.0,0.103958]
[1731720013129,0.10956255,91193.0,91180.0,0.269246]
[1731720013130,0.10956255,91193.0,91186.0,0.219331]
[1731720013344,0.0005,91184.0,91168.0,0.0499]
[1731720013577,0.0005,91177.0,91174.0,0.109679]
[1731720013821,0.0005,91177.0,91169.0,0.30938309]
[1731720013822,0.10906255,91176.0,91175.0,0.109679]
[1731720014502,0.27457098,91188.0,91170.0,0.21937]
[1731720014503,0.0005,91188.0,91170.0,0.0045]
[1731720014740,0.16440698,91182.0,91181.0,0.109671]
[1731720014986,0.27346953,91182.0,91181.0,0.109671]
[1731720015268,0.10906255,91182.0,91181.0,0.109671]
[1731720017294,0.10906255,91182.0,91169.0,0.295572]
[1731720017295,0.0005,91180.0,91169.0,0.295572]
[1731720017523,0.10906255,91179.0,91178.0,0.109674]
[1731720019777,0.10906255,91179.0,91178.0,0.10963055]
[1731720020657,0.10906255,91179.0,91169.0,0.0762]
[1731720020808,0.109679,91175.0,91170.0,0.01380248]
[1731720021011,0.10906255,91174.0,91171.0,0.01037728]
[1731720021220,0.10906255,91174.0,91173.0,0.109681]
[1731720021428,0.10906255,91174.0,91173.0,0.01037943]
[1731720021669,0.10906255,91174.0,91167.0,0.219375]
[1731720021878,0.10956255,91174.0,91169.0,0.109685]
[1731720022101,0.10956255,91174.0,91170.0,0.01038106]
[1731720022307,0.0005,91170.0,91165.0,0.10969]
[1731720022506,0.0005,91170.0,91166.0,0.01381144]
[1731720022507,0.10906255,91169.0,91166.0,0.01381144]
[1731720022884,0.10906255,91169.0,91167.0,0.01038579]
[1731720023521,0.10906255,91169.0,91168.0,0.01381148]
[1731720023724,0.10906255,91169.0,91168.0,0.01038579]
[1731720024122,0.10906255,91169.0,91167.0,0.01038579]
[1731720024327,0.10906255,91169.0,91165.0,0.01663143]
[1731720024328,0.10956255,91169.0,91168.0,0.00342569]
[1731720024530,0.21924855,91169.0,91168.0,0.01382137]
[1731720024957,0.21924855,91169.0,91154.0,0.0762]
[1731720024958,0.10956255,91169.0,91157.0,0.1097]
[1731720025163,0.219376,91168.0,91156.0,0.01664346]
[1731720025416,0.109692,91164.0,91158.0,0.11312497]
[1731720025625,0.10906255,91163.0,91159.0,0.03047173]
[1731720025846,0.10906255,91163.0,91160.0,0.01382827]
[1731720026068,0.10906255,91163.0,91161.0,0.0104023]
[1731720026301,0.10906255,91163.0,91162.0,0.0104023]
[1731720026302,0.10956255,91163.0,91162.0,0.0104023]
[1731720026514,0.10956255,91163.0,91148.0,0.02707104]
[1731720026515,0.002,91158.0,91148.0,0.02707104]
[1731720026801,0.13256255,91163.0,91149.0,0.01041914]
[1731720026802,0.109709,91150.0,91149.0,0.01041914]
[1731720027015,0.21927155,91150.0,91149.0,0.01384535]
[1731720027888,0.22127155,91150.0,91149.0,0.01384535]
[1731720028145,0.24427155,91150.0,91149.0,0.01384535]
[1731720028347,0.24227155,91150.0,91149.0,0.03051409]
[1731720028561,0.24227155,91150.0,91149.0,0.01384535]
[1731720028777,0.24227155,91150.0,91149.0,0.01041914]
[1731720030256,0.24427155,91150.0,91149.0,0.01041914]
[1731720030463,0.24427155,91150.0,91145.0,0.001715]
[1731720030464,0.135214,91146.0,91145.0,0.001715]
[1731720030672,0.24427655,91146.0,91145.0,0.001715]
[1731720030882,0.24227655,91146.0,91145.0,0.001715]
[1731720031712,0.2455003,91146.0,91145.0,0.001715]
[1731720032535,0.3241003,91146.0,91145.0,0.01215204]
[1731720032753,0.3241003,91146.0,91145.0,0.001715]
[1731720033402,0.3221003,91146.0,91145.0,0.001715]
[1731720033605,0.2455003,91146.0,91145.0,0.001715]
[1731720033810,0.1127863,91146.0,91145.0,0.001715]
[1731720034037,0.1122863,91146.0,91145.0,0.11143]
[1731720034385,0.1127863,91146.0,91145.0,0.01214392]
[1731720035012,0.1127863,91146.0,91145.0,0.01557069]
[1731720035626,0.1127863,91146.0,91145.0,0.12185273]
[1731720036057,0.1127863,91146.0,91145.0,0.01213773]
[1731720036904,0.1127863,91146.0,91145.0,0.01213582]
[1731720039229,0.1122863,91146.0,91145.0,0.12185082]
[1731720039587,0.10906255,91146.0,91145.0,0.14194468]
[1731720040870,0.0005,91157.0,91145.0,0.03222968]
[1731720041076,0.0005,91163.0,91162.0,0.109694]
[1731720042669,0.10956255,91163.0,91162.0,0.109694]
[1731720044146,0.11340363,91163.0,91162.0,0.109694]